Cogmind - Beta 16.1 @@@ ROGUE MODE // 2026.03.21 @ 16:35:39 Player: Triffids Result: Destroyed by D-53 Grenadier with Mini Grenade Launcher Performance ------------- Evolutions (0) 0 Regions Visited (2) 400 Robots Destroyed (13) 65 Value Destroyed (203) 203 Prototype IDs (0) 0 Alien Tech Used (0) 0 Bonus (0) 0 TOTAL SCORE: 668 Bonus ------- None Cogmind --------- Core Integrity 0/250 Matter 300/300 Energy 100/100 System Corruption 0% Temperature Cool (0) Movement Core (100) Ox1 Location -10/Mines Parts ------- > --- POWER (1) -------- (None) > --- PROPULSION (2) --- (None) > --- UTILITY (2) ------ Small Storage Unit Seismic Detector > --- WEAPON (2) ------- (None) > --- INVENTORY (8) ---- Ion Engine Aluminum Leg Medium Matter Pod (100) Sensor Array Signal Interpreter Improved Terrain Scanner Grenade Launcher Hammer Peak State ------------ > --- POWER ------------ Ion Engine > --- PROPULSION ------- Aluminum Leg Aluminum Leg > --- UTILITY ---------- Small Storage Unit Structural Scanner > --- WEAPON ----------- Small Laser Assault Rifle > --- INVENTORY -------- Ion Engine Aluminum Leg Medium Matter Pod Improved Terrain Scanner Assault Rifle Grenade Launcher Mining Laser Hammer [Rating: 8] Favorites ----------- Power Ion Engine Engine Ion Engine Propulsion Aluminum Leg Leg Aluminum Leg Utility Small Storage Unit Device Structural Scanner Storage Small Storage Unit Weapon Assault Rifle Energy Gun Small Laser Ballistic Gun Assault Rifle Special Weapon Mining Laser Build | -11 -10 -10 ------- Run | Yrd Mat Min Slots Evolved . | . . . Power . | . . . Propulsion . | . . . Utility . | . . . Weapon . | . . . Parts Attached 11 | 6 3 2 Power 2 | 1 . 1 Engine 2 | 1 . 1 Core . | . . . Reactor . | . . . Propulsion 2 | 2 . . Treads . | . . . Leg 2 | 2 . . Wheel . | . . . Hover . | . . . Flight . | . . . Utility 3 | 1 1 1 Device 2 | . 1 1 Storage 1 | 1 . . Processor . | . . . Hackware . | . . . Protection . | . . . Artifact . | . . . Weapon 4 | 2 2 . Energy Gun 1 | 1 . . Energy Cannon . | . . . Ballistic Gun 2 | 1 1 . Ballistic Cannon . | . . . Launcher . | . . . Special Weapon 1 | . 1 . Impact Weapon . | . . . Slashing Weapon . | . . . Piercing Weapon . | . . . Special Melee Weapon . | . . . Unidentified Prototypes . | . . . Parts Lost 5 | . . 5 Power 1 | . . 1 Propulsion 2 | . . 2 Utility . | . . . Weapon 2 | . . 2 Highest Loss Streak 5 | . . 5 To Critical Strikes . | . . . Average Backups 6 | 2 6 8 Power 1 | 1 1 1 Propulsion . | . . 1 Utility 2 | . 1 4 Weapon 2 | 1 2 2 Tool/Special . | . . . Unused Backups 9 | . 1 8 Power 1 | . . 1 Propulsion 1 | . . 1 Utility 5 | . 1 4 Weapon 2 | . . 2 Tool/Special . | . . . Average Slot Usage (%) 94 | . 93 96 Engine 13 | . 14 13 Leg 27 | . 28 26 Device 10 | . 7 14 Storage 14 | . 14 14 Energy Gun 13 | . 13 13 Ballistic Gun 13 | . 14 13 Peak Build Rating 8 | 6 8 8 Average Rating 7 | 5 6 7 On Entrance 4 | . 6 8 Avg Prop Armor Cover (%) 25 | 25 . . Naked Turns . | . . . Heaviest Build 14 | 13 14 14 Greatest Support 20 | 20 20 20 Greatest Overweight (x) 2 | 1 . 2 Average Overweight (x) . | . . . Largest Inventory Capacity 8 | 8 8 8 Average Capacity 7 | 7 8 8 Most Carried 8 | 5 8 8 Average Carried 6 | 3 6 8 Final Capacity 8 | 8 8 8 Final Carried 8 | 4 8 8 Class Distribution -------------------- 100% | Mutant Dominant Class ---------------- Mutant | -10/Materials Mutant | -10/Mines Resources | -11 -10 -10 ----------- Run | Yrd Mat Min Matter Collected 549 | 302 70 177 Remotely . | . . . Salvage Created 405 | 168 164 73 Parts 29 | 15 9 5 Haulers Intercepted . | . . . Recyclers Shooed 1 | 1 . . Parts Field Recycled . | . . . Retrieved Matter . | . . . Parts Self-Destructed . | . . . Prevented . | . . . Parts Restored . | . . . Kills | -11 -10 -10 ------- Run | Yrd Mat Min Combat Hostiles Destroyed 7 | . 3 4 Guns 7 | . 3 4 Classes Destroyed 5 | 2 1 2 Tunneler 6 | 5 1 . Recycler 1 | 1 . . Swarmer 3 | . . 3 Grunt 3 | . 3 . Assembled 1 | . . 1 Best Kill Streak 5 | 5 1 3 Combat Bots Only 3 | . 1 3 Max Kills in Single Turn 2 | 1 1 2 Gunslinging 1 | . . 1 Exploded . | . . . Melee . | . . . Uniques/NPCs Destroyed . | . . . Combat | -11 -10 -10 -------- Run | Yrd Mat Min Hostile Shots Fired 58 | . 23 35 Missed 19 | . 9 10 Hits 39 | . 14 25 Projectile 39 | . 14 25 AOE 13 | . . 13 Damage Taken 829 | . 189 640 Core 257 | . 28 229 Absorbed by Shields . | . . . Core Remaining (%) 100 | 100 . . Volleys Fired 45 | 14 23 8 Largest 2 | 2 2 2 Hottest 100 | 60 100 60 Shots Fired 89 | 28 45 16 Gun 88 | 28 44 16 Cannon . | . . . Launcher . | . . . Special 1 | . 1 . Kinetic 44 | 14 22 8 Thermal 45 | 14 23 8 Explosive . | . . . Electromagnetic . | . . . Robot Hit Streak 9 | 3 4 9 Robot Miss Streak 4 | 3 4 4 Penetration Max . | . . . Secondary Targets 1 | . . 1 Max Gunslinging Chain 1 | . . 1 Shots Hit Robots 49 | 12 26 11 Core Hits 20 | 7 8 5 Critical Kills . | . . . Critical Parts Destroyed . | . . . Critical Strikes . | . . . Melee Attacks . | . . . Impact . | . . . Slashing . | . . . Piercing . | . . . Sneak Attacks . | . . . Combat Hostiles . | . . . Follow-up Attacks . | . . . Damage Inflicted 596 | 146 322 128 Guns 596 | 146 322 128 Cannons . | . . . Explosions . | . . . Melee . | . . . Ramming . | . . . Kinetic 351 | 100 176 75 Thermal 245 | 46 146 53 Explosive . | . . . Electromagnetic . | . . . Impact . | . . . Slashing . | . . . Piercing . | . . . Highest Corruption . | . . . Average Corruption . | . . . Corruption Purged . | . . . Corruption Blocked . | . . . Overload Shots . | . . . Overflow Damage . | . . . Projectiles . | . . . Explosions . | . . . Melee . | . . . Knockbacks . | . . . Impact . | . . . Kinetic . | . . . Secondary . | . . . Self-Inflicted Damage . | . . . Shots . | . . . Rammed . | . . . Targets Rammed . | . . . Kicked . | . . . Crushed . | . . . Highest Temperature 60 | . 60 . Average Temperature 28 | . 28 . Received Heat Transfer 108 | . 108 . Siege Activations . | . . . Martial Activations . | . . . Shielding Activations . | . . . Robots Disrupted . | . . . Combat Hostiles . | . . . Robots Corrupted . | . . . Combat Hostiles . | . . . Parts Fried . | . . . Impact Corruptions . | . . . Robots Melted . | . . . Combat Hostiles . | . . . Parts Melted 1 | . 1 . Heat Transferred 550 | 100 325 125 Parts Sabotaged . | . . . Parts Stolen . | . . . Parts Stripped . | . . . Power Chain Reactions . | . . . Alert | -11 -10 -10 ------- Run | Yrd Mat Min Maximum Alert Level . | . . . Low Security (%) 100 | 100 100 100 Level 1 . | . . . Level 2 . | . . . Level 3 . | . . . Level 4 . | . . . Level 5 . | . . . High Security . | . . . Max Security . | . . . Peak Influence 70 | 10 64 70 Initial . | . . . Average 15 | 2 22 14 Influence Increases 234 | 30 134 70 Destroy 0b10 Robot/C 120 | . 60 60 Destroy 0b10 Robot/NC 35 | 30 5 . Destroy Leader 20 | . 10 10 Successful Hack 14 | . 14 . Disable Machine 15 | . 15 . Lose Combat Pursuer 30 | . 30 . Influence Decreases 234 | 30 134 70 Time Decay 234 | 30 134 70 Squads Dispatched 1 | . 1 . Investigation . | . . . Extermination . | . . . Reinforcement 1 | . 1 . Assault . | . . . Garrison . | . . . Intercept . | . . . Searches Triggered . | . . . Construction Impeded . | . . . Haulers Reinforced . | . . . Active Scanning Responses . | . . . Cargo Convoy Interrupts . | . . . Stealth | -11 -10 -10 --------- Run | Yrd Mat Min Distress Signals . | . . . Communications Jammed . | . . . Distress Signals . | . . . Times Spotted 12 | . 5 7 Peak Tracking Total 3 | . 2 3 Tactical Retreats 2 | . 1 1 Traps | -11 -10 -10 ------- Run | Yrd Mat Min Traps Triggered . | . . . Indirectly . | . . . Trap Hack Attempts . | . . . Triggered . | . . . Disarmed 3 | . 3 . Reprogrammed . | . . . Reused . | . . . Traps Extracted . | . . . Installed . | . . . Triggered . | . . . Machines | -11 -10 -10 ---------- Run | Yrd Mat Min Machines Disabled 1 | . 1 . Max in Single Turn 1 | . 1 . Machines Repaired . | . . . Machines Dismantled . | . . . Machines Sabotaged . | . . . Overloaded Fab Kills . | . . . Hacking | -11 -10 -10 --------- Run | Yrd Mat Min Machines Accessed 2 | . 2 . Terminals 2 | . 2 . Fabricators . | . . . Repair Stations . | . . . Recycling Units . | . . . Scanalyzers . | . . . Garrison Access . | . . . Total Hacks 8 | . 8 . Successful 6 | . 6 . Failed 2 | . 2 . Catastrophic 1 | . 1 . Database Lockouts . | . . . Manual 5 | . 5 . Terminals 8 | . 8 . Fabricators . | . . . Repair Stations . | . . . Recycling Units . | . . . Scanalyzers . | . . . Garrison Access . | . . . Terminal Hacks 4 | . 4 . Terminal Index 1 | . 1 . Locate Traps 1 | . 1 . Disarm Traps 1 | . 1 . Zone Layout 1 | . 1 . Fabricator Hacks . | . . . Repair Station Hacks . | . . . Recycling Unit Hacks . | . . . Scanalyzer . | . . . Garrison Access Hacks . | . . . Unauthorized Hacks 2 | . 2 . Terminals 2 | . 2 . Botnet 2 | . 2 . Fabricators . | . . . Repair Stations . | . . . Recycling Units . | . . . Scanalyzers . | . . . Garrison Access . | . . . Data Cores Recovered . | . . . Used . | . . . Hacking Detections 2 | . 2 . Full Trace Events . | . . . Feedback Events . | . . . Feedback Blocked . | . . . Robot Schematics Acquired . | . . . Robots Built . | . . . Authchips . | . . . Time . | . . . Total Robot Build Rating . | . . . Part Schematics Acquired . | . . . Parts Built . | . . . Authchips . | . . . Time . | . . . Total Part Build Rating . | . . . Part Studies Acquired . | . . . Parts Repaired . | . . . Time . | . . . Parts Recycled . | . . . Recycled Matter . | . . . Retrieved Matter . | . . . Retrieved Components . | . . . Parts Scanalyzed . | . . . Part Schematics Acquired . | . . . Parts Damaged . | . . . Bothacking | -11 -10 -10 ------------ Run | Yrd Mat Min Used RIF Installer . | . . . Robots Hacked . | . . . Non-combat . | . . . Combat . | . . . Robot Hacks Applied . | . . . Relay Couplers Released . | . . . Fabnet Peak Effective % . | . . . Robots Rewired . | . . . Allies Hacked . | . . . Hacks Repelled . | . . . Allies | -11 -10 -10 -------- Run | Yrd Mat Min Total Allies . | . . . Largest Group . | . . . Highest-Rated Group . | . . . Highest-Rated Ally . | . . . Total Orders . | . . . Ally Attacks . | . . . Total Damage . | . . . Kills . | . . . Allies Corrupted . | . . . Allies Melted . | . . . Intel | -11 -10 -10 ------- Run | Yrd Mat Min Active Infowar (turns) 541 | . 205 336 Structural 451 | . 205 246 Seismic 90 | . . 90 Robot Analysis Total . | . . . Derelict Logs Recovered 1 | . . 1 Drone Launches . | . . . Drone Recoveries . | . . . Exploration | -11 -10 -10 ------------- Run | Yrd Mat Min Turns Passed 839 | 128 373 338 Spaces Moved 539 | 64 224 251 Core 22 | 15 . 7 Treads . | . . . Legs 517 | 49 224 244 Wheels . | . . . Hover . | . . . Flight . | . . . Fastest Speed 50 | 50 120 100 Average Speed 119 | 111 120 120 Slowest Speed 190 | 120 120 190 Overloaded Moves . | . . . Propulsion Burnouts . | . . . Robots Hopped . | . . . Potential Cave-ins . | . . . Cave-ins Triggered . | . . . Exploration Rate (%) 26 | 4 39 35 Regions Visited 2 Branch Regions 1 Pre-discovered Areas . | . . . Known Exits Taken . | . . . Unknown Exits Taken 2 | 1 1 . Scrap Searched 1 | . . 1 Spaces Dug . | . . . Terrain Destroyed . | . . . Melee . | . . . Projectile . | . . . AOE . | . . . Terrain Rammed . | . . . Walls Destroyed . | . . . Machines Disabled . | . . . Actions | -11 -10 -10 --------- Run | Yrd Mat Min Total 643 | 91 282 270 Wait 28 | 1 20 7 Move 537 | 63 223 251 Hop . | . . . Pick Up 15 | 7 8 . Fast Attach 5 | 3 1 1 Attach 3 | 3 . . Detach . | . . . Swap 4 | . 3 1 Drop 6 | . 4 2 Fire 45 | 14 23 8 Melee . | . . . Ram . | . . . Kick . | . . . Crush . | . . . Escape Stasis . | . . . Rewire . | . . . Trap . | . . . Miscellaneous . | . . . Route ------- -11/Scrapyard -10/Materials (discovered 2 exits: [*Min x2]) -10/Mines History --------- Turn | Location | Event 15 | -11/Scrapyard | Discovered new exit (range 16) 129 | -11/Scrapyard | Entered Materials 210 | -10/Materials | Discovered new exit (range 19) 316 | -10/Materials | Build established: Mutant 483 | -10/Materials | Discovered new exit (range 11) 502 | -10/Materials | Entered Mines 503 | -10/Mines | Assembled infested the area 520 | -10/Mines | Met a Derelict bent on vengeance 589 | -10/Mines | Learned Materials stockpile data 825 | -10/Mines | Core integrity fell below 50% 837 | -10/Mines | Core integrity fell below 20% 840 | -10/Mines | Destroyed by D-53 Grenadier with Mini Grenade Launcher Last Messages --------------- 00742_ Acquired 55 matter. 00743_ Acquired 20 matter. 00748_ Dropped Structural Scanner. 00748_ Acquired Seismic Detector. 00750_ R-06 Scavenger destroyed. 00756_ K-01 Serf collects debris. 00777_ Searching scrap... 00777_ Found Sml. Laser. 00777_ Found 61 Matter. 00777_ Found 32 Matter. 00777_ Found 30 Matter. 00778_ Acquired 10 matter. 00800_ as-12886 destroyed. 00803_ Acquired 6 matter. 00823_ Aluminum Leg destroyed. 00828_ Lgt. Ion Engine destroyed. 00829_ Sml. Laser destroyed. 00830_ Aluminum Leg destroyed. 00833_ The unstable cave ceiling collapses. 00836_ Assault Rifle destroyed. Map ----- +----------------------------------------------------+ | ?????????# #??????????????????????????## | | ?????????### #######?????????????????????### # | | ???????????#%%########????????????????????#### ## | | ??????????## %#### ####???????????????????####### | | ??????????##[ ### ###????????????#######?###### | | ??????????## %## ###????????###########????## | | ??????????## ####??????###### ####???## | | ??????????## ####???##### ####??## | | ???????????###### ########## ####### | | ???????????????##### ####### ###### | | ??????????????????###= ## ## | | ????????????????##### ! ########### | | ??????????????#### *=% ############# | | ?????????????## ##########?#### | | ?????????????# ## ## ##??### | | ????????????## # ## [ ##???### | | ????????????# # * ##???#### | | ????????????## # ##[ ##????###### | | ????????????## ## * ##?????###### | | ???????????### # ####= ##????????### | | ??????????#### ############?????????## | | ?????????#### *= ###########??????????? | | ?????????### %!! dd #?????????????????????? | | ?????????## ## #?????????????????????? | | ?????????## % # ######?????????????????? | | ?????????### * ## @ =%!#?????????????????? | | ?????????### ## ### #?????????????????? | | ??????????## # ###########?????????????????????? | | ??????????## ######?????????????????????????????? | | ??????????## #####??????????????????????????????? | | ??????????# ???????????????????????????????????? | | ????????## ???????????????????????????????????? | | ????????## ????????????????????????????????????? | | ???????? != ????????????????????????????????????? | | ?????? *%= ????????????????????????????????????? | | ??????## !?*?????????????????????????????????????? | | ??????###????????????????????????????????????????? | | ?????????????????????????????????????????????????? | | ?????????????????????????????????????????????????? | | ?????????????????????????????????????????????????? | | ?????????????????????????????????????????????????? | | ?????????????????????????????????????????????????? | | ?????????????????????????????????????????????????? | | ?????????????????????????????????????????????????? | | ?????????????????????????????????????????????????? | | ?????????????????????????????????????????????????? | | ?????????????????????????????????????????????????? | | ?????????????????????????????????????????????????? | | ?????????????????????????????????????????????????? | | ?????????????????????????????????????????????????? | +----------------------------------------------------+ Best States ------------- Heat Dissipation 25 Energy Generation 10 Energy Capacity 250 Matter Stores 300 Matter Capacity 300 Sight Range 16 Terrain Scan Density 10 Evasion (%) 55 Item Schematics ----------------- None Robot Schematics ------------------ None Fabricated ------------ Nothing Repaired ---------- Nothing Studied --------- None Alien Tech Used ----------------- None Achievements -------------- None Challenges ------------ None Game ------ Seed MyomerCoolingNukerbomber Manual? 0 Play Time 00:08:33 Cumulative 285.3 hours Start 2026.03.21 @ 16:29:19 End 2026.03.21 @ 16:35:39 Sessions 1 Manual Loads 0 Difficulty Rogue Special Mode None Game No. 542 Rogue 542 Adventurer 0 Explorer 0 Win Type - Total 1 Types 1/0/0/0/0/0/0/0/0/0 Lore% 37 Gallery% 48 Achievement% 31 Wizard Run 0 Options --------- Layout 1 ASCII 0 Keyboard 1 Movement Vi Keybinds 0 Fullscreen 0 Font 20/Smallcaps Map View 59x39 Zoom Use 0% Tactical HUD 1 Map Filters NONE Filters NONE Steam 1 RUN: d6971082-72af-4ba1-8724-8669d951cfd6